fUST/lending_fUST_20240711
["ID","MTS","AMOUNT","RATE_DAILY","PERIOD"]
[331704823,1720668641636,-500.0,0.00027397,7]
[331704824,1720668641646,-2633.13,0.00027397,7]
[331704825,1720668641655,-500.0,0.00027397,7]
[331704826,1720668641665,-500.0,0.00027397,7]
[331704827,1720668641674,-1524.68,0.00027397,7]
[331704828,1720668641683,-500.0,0.00027397,7]
[331704829,1720668641692,-500.0,0.00027397,7]
[331704830,1720668641702,-500.0,0.00027397,7]
[331704831,1720668641711,-500.0,0.00027397,7]
[331704832,1720668641721,-240.35979658,0.00027397,7]
[331704833,1720668641730,-540.5,0.00027397,7]
[331704834,1720668641739,-500.0,0.00027397,7]
[331704835,1720668641749,-500.0,0.00027397,2]
[331704836,1720668641760,-500.0,0.00027397,2]
[331704837,1720668641769,-500.0,0.00027397,2]
[331704838,1720668641779,-500.0,0.00027397,2]
[331704839,1720668641788,-369.62096182,0.00027397,2]
[331704840,1720668641797,-500.0,0.00027397,2]
[331704841,1720668641807,-500.0,0.00027397,2]
[331704842,1720668641816,-479.43575135,0.00027397,2]
[331704843,1720668641825,-500.0,0.00027397,2]
[331704844,1720668641834,-500.0,0.00027397,2]
[331704845,1720668641844,-500.0,0.00027397,2]
[331704846,1720668641853,-500.0,0.00027397,2]
[331704847,1720668641862,-500.0,0.00027397,2]
[331704848,1720668641872,-500.0,0.00027397,2]
[331704849,1720668641881,-500.0,0.00027397,2]
[331704850,1720668641890,-500.0,0.00027397,2]
[331704851,1720668641899,-500.0,0.00027397,2]
[331704852,1720668641909,-500.0,0.00027397,2]
[331704853,1720668641918,-500.0,0.00027397,2]
[331704854,1720668641928,-500.0,0.00027397,2]
[331704855,1720668641937,-500.0,0.00027397,2]
[331704856,1720668641947,-500.0,0.00027397,2]
[331704857,1720668641958,-500.0,0.00027397,2]
[331704858,1720668641968,-500.0,0.00027397,2]
[331704859,1720668641977,-500.0,0.00027397,2]
[331704860,1720668641986,-500.0,0.00027397,2]
[331704861,1720668641995,-500.0,0.00027397,2]
[331704862,1720668642007,-500.0,0.00027397,2]
[331704863,1720668642016,-495.45085605,0.00027397,2]
[331704864,1720668642025,-500.0,0.00027397,2]
[331704865,1720668642035,-500.0,0.00027397,2]
[331704866,1720668642044,-500.0,0.00027397,2]
[331704867,1720668642054,-500.0,0.00027397,2]
[331704868,1720668642063,-500.0,0.00027397,2]
[331704869,1720668642073,-500.0,0.00027397,2]
[331704870,1720668642082,-500.0,0.00027397,2]
[331704871,1720668642204,-500.0,0.00027397,2]
[331704872,1720668642215,-500.0,0.00027397,2]
[331704873,1720668642226,-500.0,0.00027397,2]
[331704874,1720668642236,-500.0,0.00027397,2]
[331704875,1720668642246,-500.0,0.00027397,2]
[331704876,1720668642260,-500.0,0.00027397,2]
[331704877,1720668642270,-500.0,0.00027397,7]
[331704878,1720668642281,-241.03281004,0.00027397,7]
[331704879,1720668642290,-500.0,0.00027397,2]
[331704880,1720668642300,-500.0,0.00027397,2]
[331704881,1720668642310,-500.0,0.00027397,2]
[331704882,1720668642319,-500.0,0.00027397,2]
[331704883,1720668642329,-500.0,0.00027397,2]
[331704884,1720668642339,-500.0,0.00027397,2]
[331704885,1720668642349,-500.0,0.00027397,2]
[331704886,1720668642358,-500.0,0.00027397,2]
[331704887,1720668642368,-500.0,0.00027397,2]
[331704888,1720668642377,-500.0,0.00027397,2]
[331704889,1720668642387,-500.0,0.00027397,2]
[331704890,1720668642396,-500.0,0.00027397,2]
[331704891,1720668642406,-500.0,0.00027397,2]
[331704892,1720668642415,-500.0,0.00027397,2]
[331704893,1720668642424,-599.54508561,0.00027397,2]
[331704894,1720668642434,-500.0,0.00027397,2]
[331704895,1720668642443,-500.0,0.00027397,2]
[331704896,1720668642453,-500.0,0.00027397,2]
[331704897,1720668642463,-500.0,0.00027397,2]
[331704898,1720668642472,-500.0,0.00027397,2]
[331704899,1720668642481,-500.0,0.00027397,2]
[331704900,1720668642491,-1325.26,0.00027397,7]
[331704901,1720668642500,-500.0,0.00027397,2]
[331704902,1720668642513,-500.0,0.00027397,2]
[331704903,1720668642522,-500.0,0.00027397,2]
[331704904,1720668642531,-500.0,0.00027397,2]
[331704905,1720668642540,-264.68587623,0.00027397,2]
[331704906,1720668642551,-489.30334911,0.00027397,7]
[331704907,1720668642561,-564.51,0.00027397,7]
[331704908,1720668642571,-2591.53,0.00027397,7]
[331704909,1720668642581,-651.53,0.00027397,7]
[331704910,1720668642591,-500.0,0.00027397,2]
[331704911,1720668642601,-500.0,0.00027397,2]
[331704912,1720668642610,-500.0,0.00027397,2]
[331704913,1720668642620,-264.00802841,0.00027397,2]
[331704914,1720668642629,-500.0,0.00027397,7]
[331704915,1720668642638,-500.0,0.00027397,7]
[331704916,1720668642647,-6364.56,0.00027397,7]
[331704917,1720668642656,-521.47,0.00027397,7]
[331704918,1720668642666,-500.0,0.00027397,2]
[331704919,1720668642675,-856.58,0.00027397,7]
[331704920,1720668642685,-500.0,0.00027397,7]
[331704921,1720668642694,-348.67485687,0.00027397,7]
[331704922,1720668642703,-533.3,0.00027397,7]
[331704923,1720668642713,-500.0,0.00027397,7]
[331704924,1720668642723,-500.0,0.00027397,2]
[331704925,1720668642732,-170.39922346,0.00027397,7]
[331704926,1720668642742,-500.0,0.00027397,7]
[331704927,1720668642751,-506.21113113,0.00027397,7]
[331704928,1720668642766,-500.0,0.00027397,7]
[331704930,1720668642775,-500.0,0.00027397,7]
[331704932,1720668642784,-509.38177595,0.00027397,7]
[331704934,1720668642794,-500.0,0.00027397,2]
[331704936,1720668642803,-500.0,0.00027397,7]
[331704938,1720668642813,-500.0,0.00027397,2]
[331704940,1720668642822,-508.78410784,0.00027397,7]
[331704942,1720668642831,-504.21279752,0.00027397,7]
[331704944,1720668642841,-175.5408137,0.00027397,7]
[331704945,1720668642850,-504.55016843,0.00027397,7]
[331704946,1720668642860,-511.084096,0.00027397,7]
[331704947,1720668642870,-500.0,0.00027397,7]
[331704948,1720668642879,-500.0,0.00027397,7]
[331704949,1720668642889,-500.0,0.00027397,7]
[331704950,1720668642898,-500.0,0.00027397,2]
[331704951,1720668642908,-166.563049,0.00027397,120]
[331704952,1720668642917,-718.38155838,0.0002742,2]
[331704953,1720668642927,-9875.18889439,0.00027454,2]
[331704954,1720668642937,-202.60650965,0.00027461,2]
[331704955,1720668642948,-500.0,0.0002766,7]
[331704956,1720668642961,-500.0,0.0002766,7]
[331704957,1720668642971,-500.0,0.0002767,7]
[331704958,1720668642981,-500.0,0.0002767,2]
[331704959,1720668642990,-173.35265737,0.0002767,2]
[331704960,1720668643000,-500.0,0.0002767,2]
[331704961,1720668643013,-500.0,0.0002767,2]
[331704962,1720668643022,-246.53781432,0.0002767,2]
[331704963,1720668643032,-500.0,0.0002767,2]
[331704964,1720668643042,-311.80986611,0.0002767,2]
[331704965,1720668643052,-535.92646101,0.0002767,2]
[331704966,1720668643062,-500.0,0.0002767,2]
[331704967,1720668643072,-500.0,0.0002767,2]
[331704968,1720668643081,-500.0,0.0002767,2]
[331704969,1720668643091,-500.0,0.0002767,2]
[331704970,1720668643100,-500.0,0.0002767,2]
[331704971,1720668643110,-500.0,0.0002767,2]
[331704972,1720668643120,-500.0,0.0002767,2]
[331704973,1720668643129,-409.08815377,0.0002767,2]
[331704974,1720668643139,-500.0,0.0002767,2]
[331704975,1720668643148,-500.0,0.0002767,2]
[331704976,1720668643158,-500.0,0.0002767,2]
[331704977,1720668643168,-500.0,0.00027671,7]
[331704978,1720668643177,-700.89,0.00027671,7]
[331704979,1720668643187,-500.0,0.00027671,7]
[331704980,1720668643197,-584.43,0.00027671,7]
[331704981,1720668643206,-1500.0,0.00027671,7]
[331704982,1720668643216,-872.7,0.00027671,7]
[331704983,1720668643225,-500.0,0.00027671,7]
[331704984,1720668643235,-520.43,0.00027671,7]
[331704985,1720668643245,-500.0,0.00027671,7]
[331704986,1720668643257,-508.3,0.00027671,7]
[331704987,1720668643267,-500.0,0.00027671,7]
[331704988,1720668643277,-500.0,0.00027671,7]
[331704989,1720668643286,-500.0,0.00027671,2]
[331704990,1720668643295,-151.0,0.00027671,7]
[331704991,1720668643305,-500.0,0.00027671,7]
[331704992,1720668643314,-151.0,0.00027671,7]
[331704993,1720668643323,-500.0,0.00027671,7]
[331704994,1720668643333,-151.0,0.00027671,7]
[331704995,1720668643342,-151.0,0.00027671,7]
[331704996,1720668643352,-500.0,0.00027671,7]
[331704997,1720668643362,-811.6,0.00027671,7]
[331704998,1720668643372,-151.0,0.00027671,7]
[331704999,1720668643382,-1440.66,0.00027671,7]
[331705000,1720668643392,-3443.07,0.00027671,7]
[331705001,1720668643401,-151.0,0.00027671,2]
[331705002,1720668643411,-500.0,0.00027671,7]
[331705003,1720668643421,-500.0,0.00027671,7]
[331705004,1720668643431,-778.78,0.00027671,7]
[331705005,1720668643441,-151.0,0.00027671,7]
[331705007,1720668643451,-151.0,0.00027671,7]
[331705009,1720668643461,-500.0,0.00027671,7]
[331705011,1720668643470,-1044.53,0.00027671,7]
[331705013,1720668643479,-512.46239049,0.00027671,7]
[331705015,1720668643489,-151.0,0.00027671,7]
[331705017,1720668643499,-1398.75,0.00027671,4]
[331705019,1720668643510,-151.0,0.00027671,7]
[331705022,1720668643520,-151.0,0.00027671,7]
[331705023,1720668643530,-604.51,0.00027671,7]
[331705024,1720668643540,-500.0,0.00027671,7]
[331705025,1720668643549,-164.690164,0.00027671,7]
[331705026,1720668643559,-164.690164,0.00027671,7]
[331705027,1720668643568,-151.0,0.00027671,7]
[331705028,1720668643578,-151.0,0.00027671,7]
[331705029,1720668643587,-612.077034,0.00027671,7]
[331705030,1720668643597,-469.84587989,0.00027671,7]
[331705031,1720668643606,-151.0,0.00027671,7]
[331705032,1720668643616,-612.077034,0.00027671,7]
[331705033,1720668643625,-693.695451,0.00027671,7]
[331705034,1720668643635,-500.0,0.00027671,7]
[331705035,1720668643644,-693.695451,0.00027671,7]
[331705036,1720668643654,-263.108189,0.00027671,2]
[331705037,1720668643664,-151.0,0.00027671,7]
[331705038,1720668643674,-263.108189,0.00027671,2]
[331705039,1720668643684,-500.0,0.00027671,7]
[331705040,1720668643693,-151.0,0.00027671,7]
[331705041,1720668643702,-500.0,0.00027671,7]
[331705042,1720668643712,-151.0,0.00027671,7]
[331705043,1720668643721,-1904.81914,0.00027671,7]
[331705044,1720668643731,-1904.81914,0.00027671,7]
[331705045,1720668643740,-3022.077095,0.00027671,7]
[331705046,1720668643749,-3022.077095,0.00027671,7]
[331705047,1720668643760,-500.0,0.00027671,7]
[331705048,1720668643769,-2633.13,0.00027671,7]
[331705049,1720668643778,-500.0,0.00027671,7]
[331705050,1720668643788,-500.0,0.00027671,7]
[331705051,1720668643797,-1524.68,0.00027671,7]
[331705052,1720668643806,-500.0,0.00027671,7]
[331705054,1720668643816,-676.11548,0.00027671,7]
[331705055,1720668643825,-500.0,0.00027671,7]
[331705056,1720668643834,-676.11548,0.00027671,7]
[331705057,1720668643844,-508.75326275,0.00027671,7]
[331705058,1720668643854,-151.0,0.00027671,7]
[331705059,1720668643864,-500.0,0.00027671,7]
[331705060,1720668643873,-500.0,0.00027671,7]
[331705061,1720668643883,-151.0,0.00027671,7]
[331705062,1720668643893,-500.0,0.00027671,7]
[331705064,1720668643902,-151.0,0.00027671,7]
[331705065,1720668643911,-175.010961,0.00027671,7]
[331705067,1720668643920,-1325.26,0.00027671,7]
[331705069,1720668643930,-151.0,0.00027671,7]
[331705071,1720668643940,-151.0,0.00027671,7]
[331705073,1720668643951,-564.51,0.00027671,7]
[331705074,1720668643962,-2591.53,0.00027671,7]
[331705076,1720668643972,-651.53,0.00027671,7]
[331705077,1720668643983,-500.0,0.00027671,7]
[331705078,1720668643992,-468.026029,0.00027671,7]
[331705079,1720668644002,-468.026029,0.00027671,7]
[331705080,1720668644014,-609.85873627,0.00027671,7]
[331705081,1720668644023,-6364.56,0.00027671,7]
[331705082,1720668644033,-521.47,0.00027671,7]
[331705083,1720668644043,-856.58,0.00027671,7]
[331705084,1720668644053,-500.0,0.00027671,7]
[331705085,1720668644063,-533.3,0.00027671,7]
[331705086,1720668644073,-573.56082225,0.00027671,7]
[331705087,1720668644083,-500.0,0.00027671,7]
[331705088,1720668644092,-500.0,0.00027671,7]
[331705089,1720668644102,-500.0,0.00027671,7]
[331705090,1720668644113,-500.0,0.00027671,7]
[331705091,1720668644123,-500.0,0.00027671,7]
[331705092,1720668644133,-474.93921109,0.00027671,7]
[331705093,1720668644143,-500.0,0.00027671,7]
[331705094,1720668644153,-9875.18889439,0.00027787,2]
[331705095,1720668644162,-500.0,0.00027944,7]
[331705096,1720668644173,-500.0,0.00027945,7]
[331705097,1720668644182,-700.89,0.00027945,7]
[331705098,1720668644192,-584.43,0.00027945,7]
[331705099,1720668644202,-872.7,0.00027945,7]
[331705100,1720668644211,-500.0,0.00027945,7]
[331705101,1720668644220,-520.43,0.00027945,7]
[331705102,1720668644230,-500.0,0.00027945,7]
[331705103,1720668644239,-319.65974556,0.00027945,7]
[331705104,1720668644433,-188.64025444,0.00027945,7]
[331705105,1720668644443,-500.0,0.00027945,7]
[331705106,1720668644452,-500.0,0.00027945,7]
[331705107,1720668644461,-500.0,0.00027945,2]
[331705108,1720668644471,-430.22156882,0.00027945,7]
[331705109,1720668644481,-500.0,0.00027945,7]
[331705110,1720668644491,-811.6,0.00027945,7]
[331705111,1720668644501,-1440.66,0.00027945,7]
[331705112,1720668644514,-3443.07,0.00027945,7]
[331705113,1720668644525,-500.0,0.00027945,7]
[331705114,1720668644535,-500.0,0.00027945,7]
[331705115,1720668644545,-778.78,0.00027945,7]
[331705116,1720668644555,-627.50463826,0.00027945,7]
[331705117,1720668644565,-1044.53,0.00027945,7]
[331705118,1720668644575,-1398.75,0.00027945,4]
[331705119,1720668644585,-604.51,0.00027945,7]
[331705120,1720668644595,-500.0,0.00027945,7]
[331705121,1720668644604,-500.0,0.00027945,7]
[331705122,1720668644614,-500.0,0.00027945,7]
[331705123,1720668644624,-500.0,0.00027945,7]
[331705124,1720668644633,-500.0,0.00027945,7]
[331705125,1720668644643,-2134.62648693,0.00027945,7]
[331705126,1720668644683,14434.45576325,0.00018197,2]
[331705127,1720668644708,4411.10966123,0.00018197,2]
[331705128,1720668644732,6054.43457552,0.00018197,2]
[331705129,1720668644819,-160.11041109,0.00022943,2]
[331705130,1720668644828,-500.0,0.00027397,7]
[331705131,1720668644838,-626.85118571,0.00027671,7]
[331705132,1720668644847,-498.50351307,0.00027945,7]
[331705133,1720668644857,-500.0,0.00027945,7]
[331705134,1720668644866,-500.0,0.00027945,7]
[331705135,1720668644876,-1524.68,0.00027945,7]
[331705136,1720668644886,-500.0,0.00027945,7]
[331705137,1720668644991,-500.0,0.00027945,7]
[331705138,1720668645002,-500.0,0.00027945,7]
[331705139,1720668645015,-500.0,0.00027945,7]
[331705140,1720668645025,-508.66189471,0.00027945,7]
[331705141,1720668645034,-1325.26,0.00027945,7]
[331705142,1720668645043,-451.32779719,0.00027945,7]
[331705155,1720668647794,-308.57307675,0.00023453,2]
[331705156,1720668647803,-113.18220281,0.00027945,7]
[331705157,1720668647812,-149.94472044,0.00027945,7]
[331705158,1720668647825,-2441.58527956,0.00027945,7]
[331705159,1720668647835,-651.53,0.00027945,7]
[331705160,1720668647844,-500.0,0.00027945,7]
[331705161,1720668647853,-6364.56,0.00027945,7]
[331705162,1720668647863,-521.47,0.00027945,7]
[331705163,1720668647871,-856.58,0.00027945,7]
[331705164,1720668647881,-500.0,0.00027945,7]
[331705165,1720668647891,-533.3,0.00027945,7]
[331705166,1720668647899,-500.0,0.00027945,7]
[331705167,1720668647908,-500.0,0.00027945,7]
[331705168,1720668647916,-500.0,0.00027945,7]
[331705169,1720668647925,-211.42566016,0.00027945,7]
[331705170,1720668647934,-478.66653711,0.00027945,7]
[331705171,1720668647944,-500.0,0.00027945,7]
[331705172,1720668647954,-268.70466552,0.00028,2]
[331705173,1720668647963,-526.29790288,0.00028,2]
[331705174,1720668647973,-282.2404083,0.00028,30]
[331705175,1720668647983,-503.84441816,0.00028,2]
[331705176,1720668647992,-7949.56834415,0.00028119,2]
[331705177,1720668648004,-1925.62055024,0.00028119,2]
[331705178,1720668648015,-500.0,0.00028208,7]
[331705179,1720668648024,-8994.17944976,0.00028216,2]
[331705201,1720669041588,1171.0897443,0.0001,2]
[331705210,1720669275649,22241.80320415,0.00018899,2]
[331705211,1720669275675,12013.450209,0.00018899,2]
[331705219,1720669300856,17297.00410989,0.00018899,2]
[331705223,1720669349559,9392.5,0.00024,60]
[331705229,1720669544046,525.58539138,0.00018899,2]
[331705232,1720669643146,-160.19888198,0.00019165,2]
[331705233,1720669643169,-179.2682199,0.00019165,2]
[331705234,1720669643194,-2281.8649205,0.00020996,2]
[331705235,1720669643217,-183.77774614,0.00021096,2]
[331705237,1720669702101,154.59033561,0.00018899,2]
[331705238,1720669743168,9.36995412,0.00018899,2]
[331705239,1720669748271,-3243.23549452,0.00018899,2]
[331705240,1720669748293,-1651.22086001,0.00019164,2]
[331705241,1720669748317,-214.60258286,0.00021096,2]
[331705242,1720669748339,-3000.0,0.00022107,2]
[331705243,1720669748359,-445.476842,0.00022191,2]
[331705244,1720669748379,-250.0,0.0002234,2]
[331705245,1720669748401,-250.0,0.00022453,2]
[331705246,1720669748423,-300.0,0.00022905,2]
[331705247,1720669748443,-300.0,0.00022905,2]
[331705248,1720669748466,-155.45465387,0.00022941,2]
[331705249,1720669749008,2125.64766423,0.00022907,2]
[331705250,1720669756288,260.38179674,0.00021096,2]
[331705253,1720669791023,155.45465387,0.00022907,2]
[331705254,1720669809654,201.03633962,0.00022943,2]
[331705303,1720669832288,-166.666666,0.00022976,2]
[331705306,1720669832300,-491.45116219,0.00023453,2]
[331705308,1720669832310,-300.0,0.00023586,2]
[331705310,1720669832319,-114.4702996,0.00023586,2]
[331705312,1720669832332,-886.9365868,0.00023586,2]
[331705314,1720669832343,-24900.0,0.00023587,2]
[331705317,1720669832354,-697.48013636,0.00023852,2]
[331705320,1720669832364,-151.10716218,0.00023952,2]
[331705323,1720669832374,-188.6609723,0.00024099,2]
[331705326,1720669832385,-154.59033561,0.00025204,2]
[331705328,1720669832394,-27660.31739069,0.00025501,2]
[331705533,1720669838380,-505.22276101,0.0002448,2]
[331705534,1720669838391,-2339.68260931,0.00025501,2]
[331705536,1720669838402,-9695.94344564,0.00025501,2]
[331705538,1720669838412,-781.74546038,0.00025501,2]
[331705539,1720669838422,-366.69138635,0.00025525,2]
[331705540,1720669838432,-442.67873852,0.0002569,2]
[331705541,1720669838442,-5293.69736034,0.00025698,2]
[331705542,1720669838452,-5925.11333665,0.00025699,2]
[331705543,1720669838462,-156.0,0.0002577,62]
[331705544,1720669838473,-214.61,0.0002577,3]
[331705545,1720669838484,-643.87,0.0002577,3]
[331705546,1720669838495,-1893.19,0.0002577,3]
[331705547,1720669838507,-63349.6555405,0.0002578,3]
[331705548,1720669838518,-156.0,0.0002578,62]
[331705549,1720669838527,-500.0,0.00025789,2]
[331705550,1720669838538,-500.0,0.00025789,2]
[331705551,1720669838548,-500.0,0.00025789,2]
[331705552,1720669838558,-500.0,0.00025789,2]
[331705553,1720669838569,-509.17876094,0.00025789,2]
[331705554,1720669838580,-279.08946825,0.00025789,2]
[331705555,1720669838590,-500.0,0.00025789,2]
[331705556,1720669838600,-500.0,0.00025789,2]
[331705557,1720669838610,-500.0,0.00025789,2]
[331705558,1720669838621,-500.0,0.00025789,2]
[331705559,1720669838631,-289.3751138,0.00025789,2]
[331705560,1720669838641,-500.0,0.00025789,2]
[331705561,1720669838652,-204.08145463,0.00025789,2]
[331705562,1720669838663,-6559.62838517,0.0002579,5]
[331705563,1720669838678,-156.0,0.0002579,62]
[331705564,1720669838689,-253398.622162,0.0002579,3]
[331705565,1720669838699,-218.26690628,0.00025799,2]
[331705566,1720669838710,-500.0,0.00025799,2]
[331705567,1720669838720,-522.57647002,0.00025799,2]
[331705568,1720669838731,-500.0,0.00025799,2]
[331705569,1720669838740,-500.0,0.00025799,2]
[331705570,1720669838750,-500.0,0.00025799,2]
[331705571,1720669838760,-275.14852271,0.00025799,2]
[331705572,1720669838769,-500.0,0.00025799,2]
[331705573,1720669838778,-436.36170764,0.00025799,2]
[331705574,1720669838789,-500.0,0.00025799,2]
[331705575,1720669838799,-500.0,0.00025799,2]
[331705576,1720669838809,-500.0,0.00025799,2]
[331705577,1720669838819,-500.0,0.00025799,2]
[331705578,1720669838829,-500.0,0.00025799,2]
[331705579,1720669838839,-500.0,0.00025799,2]
[331705580,1720669838849,-152.78683439,0.00025799,2]
[331705581,1720669838859,-77423.15313133,0.000258,3]
[331705582,1720669838874,-408.0,0.000258,3]
[331705583,1720669838887,-2003.01915172,0.000258,3]
[331705584,1720669838899,-37515.59405259,0.000258,3]
[331705585,1720669839305,-302.508594,0.000258,3]
[331705604,1720669840623,-1577.66,0.0002578,3]
[331705605,1720669840632,-60700.9173152,0.000258,3]
[331705606,1720669840647,-264.0,0.000258,3]
[331705679,1720669843456,-15343.13418542,0.000258,3]
[331705682,1720669843469,-9116.01179579,0.000258,3]
[331705715,1720669846698,-3.0,0.000258,3]
[331705723,1720670228415,3081.98984845,0.00016255,2]
[331705724,1720670245916,3081.98984845,0.00016255,2]
[331705725,1720670293471,2423.17315558,0.00016255,2]
[331705726,1720670309217,288.22824915,0.00016255,2]
[331705727,1720670327318,6987.56477081,0.00016255,2]
[331705728,1720670414236,288.39057041,0.00016255,2]
[331705729,1720670463485,2423.17315558,0.00016255,2]
[331705730,1720670465932,345.59134398,0.00016255,2]
[331705731,1720670494481,154.59033561,0.00016255,2]
[331705733,1720670508333,4910.34119044,0.00016255,2]
[331705747,1720670564222,209.31817584,0.00016255,2]
[331705748,1720670570442,154.59033561,0.00016255,2]
[331705750,1720670593724,155.03441678,0.00016255,2]
[331705751,1720670600935,182.77484663,0.00016255,2]
[331705753,1720670614433,182.77484663,0.00016255,2]
[331705754,1720670629172,1042.97057686,0.00016255,2]
[331705756,1720670660508,944.05991393,0.00016255,2]
[331705757,1720670673699,655.51542758,0.00016255,4]
[331705762,1720670708485,231.39404804,0.00016255,2]
[331705764,1720670738747,209.31817584,0.00016255,2]
[331705765,1720670739313,534.15056186,0.00016255,2]
[331705766,1720670804104,154.59033561,0.00016255,2]
[331705767,1720670811237,154.59033561,0.00016255,2]
[331705768,1720670813825,404.67602219,0.00016255,2]
[331705769,1720670829143,-1042.97057686,0.00018899,2]
[331705770,1720670829165,-182.77484663,0.00018899,2]
[331705771,1720670829186,-1992.51989508,0.00019164,2]
[331705772,1720670829208,-155.10750138,0.00019165,2]
[331705773,1720670829228,-155.52343625,0.00019165,2]
[331705774,1720670829249,-276.38559097,0.00019165,2]
[331705775,1720670829270,-331.417558,0.00019632,2]
[331705776,1720670829291,-300.0,0.00019702,2]
[331705777,1720670829311,-300.0,0.00019702,2]
[331705778,1720670829334,-353.13065992,0.00019703,2]
[331705779,1720670829354,-271.52737978,0.00019703,2]
[331705780,1720670829374,-781.74546038,0.00019703,2]
[331705781,1720670829394,-532.50847481,0.00019703,2]
[331705782,1720670829415,-2219.28910813,0.000198,2]
[331705783,1720670834184,1042.97057686,0.00016255,2]
[331705784,1720670880370,9695.94344564,0.00018899,2]
[331705789,1720670934065,218.8089217,0.00018899,2]
[331705790,1720670951337,5742.30328228,0.00018899,2]
[331705791,1720670951536,350.02277541,0.00018899,2]
[331705792,1720670956279,154.59033561,0.00018899,2]
[331705793,1720670961490,154.59033561,0.00018899,2]
[331705794,1720670969095,-855.79897553,0.00019164,2]
[331705795,1720670969115,-855.79897553,0.00019164,2]
[331705796,1720670969136,-1604.39902116,0.00019164,2]
[331705797,1720670969156,-182.77484663,0.00019165,2]
[331705798,1720670969175,-209.2545862,0.00019165,2]
[331705799,1720670969195,-300.0,0.00019702,2]
[331705800,1720670969214,-193.88291361,0.00019703,2]
[331705801,1720670969234,-191.20491413,0.00019703,2]
[331705802,1720670969254,-547.62445991,0.00019703,2]
[331705803,1720670969273,-49931.56274225,0.000198,2]
[331705804,1720670969293,-1321.29975234,0.00020895,2]
[331705805,1720670969312,-378.461312,0.00021096,2]
[331705806,1720670969334,-24900.0,0.00021388,2]
[331705807,1720670969352,-160.652912,0.0002142,2]
[331705808,1720670969372,-3000.0,0.00021484,2]
[331705809,1720670969391,-420.0,0.00021672,2]
[331705810,1720670969410,-3049.9685344,0.00021819,2]
[331705811,1720670969429,-275.82587938,0.00021917,2]
[331705812,1720670969448,-160.11041109,0.00021917,2]
[331705813,1720670969467,-199.077588,0.00021918,2]
[331705814,1720670969487,-201.03633962,0.0002243,2]
[331705815,1720670969507,-196.54650804,0.00022941,2]
[331705816,1720670969526,-525.39824529,0.00022942,2]
[331705817,1720670970213,154.66746495,0.00021917,2]
[331705818,1720670970601,182.14889395,0.00021917,2]
[331705819,1720670971482,156.81167192,0.00022941,2]
[331705820,1720670972078,160.11041109,0.00021917,2]
[331705821,1720670973481,154.59033561,0.00018899,2]
[331705823,1720670982563,217.72515829,0.00022907,2]
[331705824,1720671006970,182.49130798,0.00022907,2]
[331705825,1720671009741,154.74456967,0.00022907,2]
[331705826,1720671010625,13505.14883433,0.00022907,2]
[331705827,1720671019698,191.07291461,0.00019603,2]
[331705867,1720671032462,-4489.82737079,0.00022907,2]
[331705879,1720671033517,-636.83710162,0.00022907,2]
[331705881,1720671033529,-1192.95832951,0.00022907,2]
[331706058,1720671038492,-32326.08021413,0.00022907,2]
[331706059,1720671038503,-280.38935069,0.00022907,2]
[331706060,1720671038513,-201.03633962,0.00022907,2]
[331706061,1720671038523,-209.2545862,0.00022907,2]